fUST/lending_fUST_20240521
["ID","MTS","AMOUNT","RATE_DAILY","PERIOD"]
[327555159,1716224264574,-500.0,0.00044383,42]
[327555160,1716224264600,-6082.08,0.00044383,42]
[327555161,1716224264628,-558.63,0.00044383,42]
[327555162,1716224264653,-500.0,0.00044383,42]
[327555163,1716224264681,-1374.25,0.00044383,42]
[327555164,1716224264708,-500.0,0.00044383,42]
[327555165,1716224264735,-1706.72,0.00044383,42]
[327555166,1716224264764,-500.0,0.00044383,42]
[327555167,1716224264791,-500.0,0.00044383,42]
[327555168,1716224264817,-500.0,0.00044383,42]
[327555169,1716224264843,-500.0,0.00044383,42]
[327555170,1716224264872,-500.0,0.00044383,42]
[327555171,1716224264900,-1942.7,0.00044383,42]
[327555172,1716224264928,-500.0,0.00044383,42]
[327555173,1716224264956,-500.0,0.00044383,42]
[327555174,1716224264984,-500.0,0.00044383,42]
[327555175,1716224265010,-500.0,0.00044383,42]
[327555176,1716224265036,-543.81,0.00044383,42]
[327555177,1716224265065,-500.0,0.00044657,43]
[327555178,1716224265091,-500.0,0.00044657,43]
[327555179,1716224265117,-500.0,0.00044657,43]
[327555180,1716224265142,-500.0,0.00044657,43]
[327555181,1716224265168,-500.0,0.00044657,43]
[327555182,1716224265195,-500.0,0.00044657,43]
[327555183,1716224265220,-500.0,0.00044657,43]
[327555184,1716224265246,-517.85377593,0.00044657,43]
[327555185,1716224265272,-500.0,0.00044657,43]
[327555186,1716224265299,-277.39634117,0.00044657,43]
[327555187,1716224265325,-500.0,0.00044657,43]
[327555188,1716224265351,-500.0,0.00044657,43]
[327555189,1716224265377,-500.0,0.00044657,43]
[327555190,1716224265403,-500.0,0.00044657,43]
[327555191,1716224265429,-500.0,0.00044657,43]
[327555192,1716224265454,-500.0,0.00044657,43]
[327555193,1716224265481,-500.0,0.00044657,43]
[327555194,1716224265509,-500.0,0.00044657,43]
[327555195,1716224265536,-500.0,0.00044657,43]
[327555196,1716224265562,-1143.19,0.00044657,43]
[327555197,1716224265589,-500.0,0.00044657,43]
[327555198,1716224265615,-500.0,0.00044657,43]
[327555199,1716224265641,-500.0,0.00044657,43]
[327555200,1716224265667,-1084.67,0.00044657,43]
[327555201,1716224265697,-615.76000615,0.00044657,43]
[327555202,1716224265723,-500.0,0.00044657,43]
[327555203,1716224265750,-500.0,0.00044657,43]
[327555204,1716224265778,-500.0,0.00044657,43]
[327555205,1716224265805,-500.0,0.00044657,43]
[327555206,1716224265831,-500.0,0.00044657,43]
[327555207,1716224265860,-500.0,0.00044657,43]
[327555208,1716224265886,-499.89284884,0.00044657,43]
[327555209,1716224265911,-500.0,0.00044657,43]
[327555210,1716224265937,-500.0,0.00044657,43]
[327555211,1716224265963,-500.0,0.00044657,43]
[327555212,1716224265988,-256.27098184,0.00044657,43]
[327555213,1716224266015,-500.0,0.00044657,43]
[327555214,1716224266041,-500.0,0.00044657,43]
[327555215,1716224266069,-500.0,0.00044657,43]
[327555216,1716224266096,-500.0,0.00044657,43]
[327555217,1716224266123,-500.0,0.00044657,43]
[327555218,1716224266150,-500.0,0.00044657,43]
[327555219,1716224266180,-500.0,0.00044657,43]
[327555220,1716224266207,-500.0,0.00044657,43]
[327555221,1716224266234,-500.0,0.00044657,43]
[327555222,1716224266262,-500.0,0.00044657,43]
[327555223,1716224266288,-513.50321141,0.00044657,43]
[327555224,1716224266316,-500.0,0.00044657,43]
[327555225,1716224266342,-510.08229655,0.00044657,43]
[327555226,1716224266369,-500.0,0.00044657,43]
[327555227,1716224266396,-500.0,0.00044657,43]
[327555228,1716224266423,-500.0,0.00044657,43]
[327555229,1716224266449,-500.0,0.00044657,43]
[327555230,1716224266475,-500.0,0.00044657,43]
[327555231,1716224266502,-500.0,0.00044657,43]
[327555232,1716224266528,-708.72,0.00044657,43]
[327555233,1716224266556,-607.17392876,0.00044657,43]
[327555234,1716224266582,-500.0,0.00044657,43]
[327555235,1716224266609,-500.0,0.00044657,43]
[327555236,1716224266636,-357.10576819,0.00044657,43]
[327555237,1716224266661,-500.0,0.00044657,43]
[327555238,1716224266689,-500.0,0.00044657,43]
[327555239,1716224266715,-506.53197277,0.00044657,43]
[327555240,1716224266741,-500.0,0.00044657,43]
[327555241,1716224266768,-500.0,0.00044657,43]
[327555242,1716224266911,-500.0,0.00044657,43]
[327555243,1716224266937,-500.0,0.00044657,43]
[327555244,1716224266962,-652.09,0.00044657,43]
[327555245,1716224266989,-500.0,0.00044657,43]
[327555246,1716224267014,-500.0,0.00044657,43]
[327555247,1716224267040,-501.88073443,0.00044657,43]
[327555248,1716224267068,-500.0,0.00044657,43]
[327555249,1716224267096,-500.0,0.00044657,43]
[327555250,1716224267120,-500.0,0.00044657,43]
[327555251,1716224267146,-183.22305628,0.00044657,43]
[327555252,1716224267171,-500.0,0.00044657,43]
[327555253,1716224267196,-538.24,0.00044657,43]
[327555254,1716224267222,-500.0,0.00044657,43]
[327555255,1716224267247,-500.0,0.00044657,43]
[327555256,1716224267273,-500.0,0.00044657,43]
[327555257,1716224267301,-500.0,0.00044657,43]
[327555258,1716224267331,-500.0,0.00044657,43]
[327555259,1716224267358,-500.0,0.00044657,43]
[327555260,1716224267384,-561.49,0.00044657,43]
[327555261,1716224267412,-500.0,0.00044657,43]
[327555262,1716224267440,-743.24,0.00044657,43]
[327555263,1716224267468,-500.0,0.00044657,43]
[327555264,1716224267497,-509.29,0.00044657,43]
[327555265,1716224267525,-514.41,0.00044657,43]
[327555266,1716224267553,-500.0,0.00044657,43]
[327555267,1716224267581,-500.0,0.00044657,43]
[327555268,1716224267608,-500.0,0.00044657,43]
[327555269,1716224267635,-500.0,0.00044657,43]
[327555270,1716224267662,-500.0,0.00044657,43]
[327555271,1716224267692,-500.0,0.00044657,43]
[327555272,1716224267723,-660.76,0.00044657,43]
[327555273,1716224267751,-500.0,0.00044657,43]
[327555274,1716224267777,-500.0,0.00044657,43]
[327555275,1716224267805,-585.13,0.00044657,43]
[327555276,1716224267832,-500.0,0.00044657,43]
[327555277,1716224267879,-500.0,0.00044657,43]
[327555278,1716224267910,-500.0,0.00044657,43]
[327555279,1716224267941,-960.47,0.00044657,43]
[327555280,1716224267970,-330.91746075,0.00044657,43]
[327555281,1716224268001,-500.0,0.00044657,43]
[327555282,1716224268034,-500.0,0.00044657,43]
[327555283,1716224268068,-500.0,0.00044657,43]
[327555284,1716224268099,-500.0,0.00044657,43]
[327555285,1716224268128,-500.0,0.00044657,43]
[327555286,1716224268159,-500.0,0.00044657,43]
[327555287,1716224268190,-500.0,0.00044657,43]
[327555288,1716224268220,-534.04,0.00044657,43]
[327555289,1716224268250,-500.0,0.00044657,43]
[327555290,1716224268279,-500.0,0.00044657,43]
[327555291,1716224268309,-500.0,0.00044657,43]
[327555292,1716224268337,-500.0,0.00044657,43]
[327555293,1716224268369,-375.8685779,0.00044657,43]
[327555294,1716224268399,-500.0,0.00044657,43]
[327555295,1716224268428,-500.0,0.00044657,43]
[327555296,1716224268457,-500.0,0.00044657,43]
[327555297,1716224268486,-500.0,0.00044657,20]
[327555298,1716224268517,-500.0,0.00044657,43]
[327555299,1716224268555,-500.0,0.00044657,43]
[327555300,1716224268584,-1915.31,0.00044657,43]
[327555301,1716224268614,-506.77,0.00044657,43]
[327555302,1716224268642,-267.73575787,0.00044657,43]
[327555303,1716224268672,-500.0,0.00044657,43]
[327555304,1716224268705,-500.0,0.00044657,43]
[327555305,1716224268735,-500.0,0.00044657,43]
[327555306,1716224268764,-500.0,0.00044657,43]
[327555307,1716224268797,-500.0,0.00044657,43]
[327555308,1716224268824,-500.0,0.00044657,43]
[327555309,1716224268852,-796.23,0.00044657,43]
[327555310,1716224268881,-590.21,0.00044657,43]
[327555311,1716224268909,-500.0,0.00044657,43]
[327555312,1716224268937,-500.0,0.00044657,43]
[327555313,1716224268966,-500.0,0.00044657,43]
[327555314,1716224268994,-500.0,0.00044657,43]
[327555315,1716224269024,-500.0,0.00044657,43]
[327555316,1716224269055,-500.0,0.00044657,43]
[327555317,1716224269083,-500.0,0.00044657,43]
[327555318,1716224269112,-500.0,0.00044657,43]
[327555319,1716224269138,-500.0,0.00044657,43]
[327555320,1716224269164,-500.0,0.00044657,43]
[327555321,1716224269192,-500.0,0.00044657,43]
[327555322,1716224269218,-500.0,0.00044657,43]
[327555323,1716224269245,-500.0,0.00044657,43]
[327555324,1716224269272,-500.0,0.00044657,43]
[327555325,1716224269298,-1000.0,0.00044657,43]
[327555326,1716224269325,-500.0,0.00044657,43]
[327555327,1716224269353,-500.0,0.00044657,43]
[327555328,1716224269382,-168.81283607,0.00044657,43]
[327555329,1716224269412,-500.0,0.00044657,43]
[327555330,1716224269439,-500.0,0.00044657,43]
[327555331,1716224269466,-500.0,0.00044657,43]
[327555332,1716224269495,-500.0,0.00044657,30]
[327555333,1716224269521,-500.0,0.00044657,43]
[327555334,1716224269550,-1000.0,0.00044657,43]
[327555335,1716224269577,-500.0,0.00044657,43]
[327555336,1716224269604,-500.0,0.00044657,43]
[327555337,1716224269633,-540.5,0.00044657,43]
[327555338,1716224269662,-920.22,0.00044657,43]
[327555339,1716224269692,-500.0,0.00044657,43]
[327555340,1716224269718,-500.0,0.00044657,43]
[327555341,1716224269747,-500.0,0.00044657,43]
[327555342,1716224269775,-500.0,0.00044657,43]
[327555343,1716224269805,-500.0,0.00044657,43]
[327555344,1716224269837,-866.83,0.00044657,43]
[327555345,1716224269865,-500.0,0.00044657,43]
[327555346,1716224270027,-500.0,0.00044657,43]
[327555347,1716224270059,-500.0,0.00044657,43]
[327555348,1716224270086,-500.0,0.00044657,43]
[327555349,1716224270114,-862.27,0.00044657,43]
[327555350,1716224270142,-500.0,0.00044657,43]
[327555351,1716224270170,-500.0,0.00044657,43]
[327555352,1716224270198,-500.0,0.00044657,43]
[327555353,1716224270224,-557.79848811,0.00044657,43]
[327555354,1716224270251,-500.0,0.00044657,43]
[327555355,1716224270280,-266.45868568,0.00044657,43]
[327555356,1716224270308,-500.0,0.00044657,43]
[327555357,1716224270335,-500.0,0.00044657,43]
[327555358,1716224270362,-500.0,0.00044657,43]
[327555359,1716224270389,-832.07,0.00044657,43]
[327555360,1716224270416,-500.0,0.00044657,43]
[327555361,1716224270442,-500.0,0.00044657,43]
[327555362,1716224270468,-500.0,0.00044657,43]
[327555363,1716224270493,-500.0,0.00044657,43]
[327555364,1716224270520,-500.0,0.00044657,43]
[327555365,1716224270546,-574.04,0.00044657,43]
[327555366,1716224270575,-841.14,0.00044657,43]
[327555367,1716224270601,-500.0,0.00044657,43]
[327555368,1716224270628,-503.98883775,0.00044657,43]
[327555369,1716224270655,-500.0,0.00044657,43]
[327555370,1716224270681,-500.0,0.00044657,43]
[327555371,1716224270716,-500.0,0.00044657,43]
[327555372,1716224270743,-298.31928935,0.00044657,43]
[327555373,1716224270771,-846.75,0.00044657,43]
[327555374,1716224270799,-500.0,0.00044657,43]
[327555375,1716224270828,-500.0,0.00044657,43]
[327555376,1716224270855,-500.0,0.00044657,43]
[327555377,1716224270882,-500.0,0.00044657,43]
[327555378,1716224270908,-500.0,0.00044657,43]
[327555379,1716224270935,-500.0,0.00044657,43]
[327555380,1716224270962,-500.0,0.00044657,43]
[327555381,1716224270989,-500.0,0.00044657,43]
[327555382,1716224271017,-500.0,0.00044657,43]
[327555383,1716224271045,-500.0,0.00044657,43]
[327555384,1716224271074,-500.0,0.00044657,43]
[327555385,1716224271103,-1419.71,0.00044657,43]
[327555386,1716224271132,-606.21061248,0.00044657,43]
[327555387,1716224271159,-500.0,0.00044657,43]
[327555388,1716224271186,-279.99427953,0.00044657,43]
[327555389,1716224271214,-500.0,0.00044657,43]
[327555390,1716224271242,-500.0,0.00044657,43]
[327555391,1716224271271,-500.0,0.00044657,43]
[327555392,1716224271299,-500.0,0.00044657,43]
[327555393,1716224271330,-1952.65,0.00044657,43]
[327555394,1716224271359,-500.0,0.00044657,43]
[327555395,1716224271387,-500.0,0.00044657,43]
[327555396,1716224271413,-500.0,0.00044657,43]
[327555397,1716224271440,-500.0,0.00044657,43]
[327555398,1716224271466,-595.60615946,0.00044657,43]
[327555399,1716224271493,-500.0,0.00044657,43]
[327555400,1716224271520,-500.0,0.00044657,43]
[327555401,1716224271547,-500.0,0.00044657,43]
[327555402,1716224271577,-996.88,0.00044657,43]
[327555403,1716224271604,-500.0,0.00044657,43]
[327555404,1716224271633,-500.0,0.00044657,43]
[327555405,1716224271661,-500.0,0.00044657,43]
[327555406,1716224271692,-183.50233394,0.00044657,43]
[327555407,1716224271723,-500.0,0.00044657,43]
[327555408,1716224271750,-500.0,0.00044657,43]
[327555409,1716224271784,-500.0,0.00044657,43]
[327555410,1716224271811,-500.0,0.00044657,43]
[327555411,1716224271838,-500.0,0.00044657,43]
[327555412,1716224271865,-500.0,0.00044657,43]
[327555413,1716224271892,-500.0,0.00044657,43]
[327555414,1716224271920,-500.0,0.00044657,43]
[327555415,1716224271948,-500.0,0.00044657,43]
[327555416,1716224271977,-1697.53,0.00044657,43]
[327555417,1716224272005,-1212.3,0.00044657,43]
[327555418,1716224272031,-500.0,0.00044657,43]
[327555419,1716224272062,-500.0,0.00044657,43]
[327555420,1716224272090,-744.8,0.00044657,43]
[327555421,1716224272118,-500.0,0.00044657,43]
[327555422,1716224272145,-654.46,0.00044657,43]
[327555423,1716224272172,-811.26,0.00044657,43]
[327555424,1716224272200,-500.0,0.00044657,43]
[327555425,1716224272230,-500.0,0.00044657,43]
[327555426,1716224272260,-4196.65,0.00044657,43]
[327555427,1716224272289,-500.0,0.00044657,43]
[327555429,1716224272329,-500.0,0.00044657,43]
[327555430,1716224272360,-594.74,0.00044657,43]
[327555431,1716224272389,-500.0,0.00044657,43]
[327555432,1716224272420,-32407.4,0.00044657,43]
[327555433,1716224272448,-500.0,0.00044657,43]
[327555434,1716224272476,-500.0,0.00044657,43]
[327555435,1716224272504,-1703.62,0.00044657,43]
[327555436,1716224272532,-500.0,0.00044657,43]
[327555437,1716224272563,-747.88,0.00044657,43]
[327555438,1716224272591,-500.0,0.00044657,43]
[327555439,1716224272618,-542.09117372,0.00044657,43]
[327555440,1716224272646,-500.0,0.00044657,43]
[327555441,1716224272675,-500.0,0.00044657,43]
[327555442,1716224272704,-500.0,0.00044657,43]
[327555443,1716224272734,-500.0,0.00044657,43]
[327555444,1716224272762,-633.28,0.00044657,43]
[327555445,1716224272794,-500.0,0.00044657,43]
[327555446,1716224272825,-910.83,0.00044657,43]
[327555447,1716224272855,-500.0,0.00044657,43]
[327555448,1716224272882,-500.0,0.00044657,43]
[327555449,1716224272909,-500.0,0.00044657,43]
[327555450,1716224272934,-500.0,0.00044657,43]
[327555451,1716224273084,-500.0,0.00044657,43]
[327555452,1716224273112,-500.0,0.00044657,43]
[327555453,1716224273139,-500.0,0.00044657,43]
[327555454,1716224273166,-500.0,0.00044657,43]
[327555455,1716224273192,-500.0,0.00044657,43]
[327555456,1716224273220,-500.0,0.00044657,43]
[327555457,1716224273248,-500.0,0.00044657,43]
[327555458,1716224273275,-1878.19,0.00044657,43]
[327555459,1716224273305,-500.0,0.00044657,43]
[327555460,1716224273333,-3403.14,0.00044657,30]
[327555461,1716224273360,-560.21466236,0.00044657,43]
[327555462,1716224273389,-500.0,0.00044657,43]
[327555463,1716224273416,-500.0,0.00044657,43]
[327555464,1716224273443,-3739.97,0.00044657,43]
[327555465,1716224273471,-581.84,0.00044657,43]
[327555466,1716224273499,-500.0,0.00044657,43]
[327555467,1716224273526,-500.0,0.00044657,43]
[327555468,1716224273555,-820.9,0.00044657,43]
[327555469,1716224273582,-683.27,0.00044657,43]
[327555470,1716224273610,-500.0,0.00044657,43]
[327555471,1716224273636,-500.0,0.00044657,43]
[327555472,1716224273662,-500.0,0.00044657,43]
[327555473,1716224273693,-254.22946983,0.00044657,43]
[327555474,1716224273721,-4633.41913544,0.00044657,43]
[327555475,1716224274482,10510.59464911,0.00016,2]
[327555476,1716224280378,-464.09985769,0.0003,30]
[327555477,1716224280428,-500.0,0.00043835,40]
[327555478,1716224280457,-500.0,0.00043835,40]
[327555479,1716224280485,-500.0,0.00043835,40]
[327555480,1716224280512,-397.72808017,0.00043835,40]
[327555481,1716224280540,-500.0,0.00043835,40]
[327555482,1716224280568,-500.0,0.00043835,40]
[327555483,1716224280597,-500.0,0.00043835,40]
[327555484,1716224280628,-239.54,0.00044109,41]
[327555485,1716224280655,-500.0,0.00044109,41]
[327555486,1716224280683,-500.0,0.00044109,41]
[327555487,1716224280714,-500.0,0.00044383,42]
[327555488,1716224280743,-500.0,0.00044383,42]
[327555489,1716224280777,-388.43086456,0.00044657,43]
[327555490,1716224280808,-500.0,0.00044657,43]
[327555491,1716224280837,-500.0,0.00044657,43]
[327555492,1716224280865,-759.55,0.00044657,43]
[327555493,1716224280893,-1496.69,0.00044657,43]
[327555494,1716224280921,-599.8,0.00044657,43]
[327555495,1716224280949,-500.0,0.00044657,43]
[327555496,1716224280979,-500.0,0.00044657,43]
[327555497,1716224281008,-500.0,0.00044657,43]
[327555498,1716224281037,-500.0,0.00044657,43]
[327555499,1716224281068,-613.3,0.00044657,43]
[327555500,1716224281096,-619.85,0.00044657,43]
[327555501,1716224281123,-500.0,0.00044657,43]
[327555502,1716224281150,-2521.18,0.00044657,43]
[327555503,1716224281179,-500.0,0.00044657,43]
[327555504,1716224281207,-500.0,0.00044657,43]
[327555505,1716224281234,-192.32190332,0.00044657,43]
[327555506,1716224281262,-566.55,0.00044657,43]
[327555507,1716224281288,-500.0,0.00044657,43]
[327555508,1716224281316,-500.0,0.00044657,43]
[327555509,1716224281343,-649.53,0.00044657,43]
[327555510,1716224281370,-500.0,0.00044657,43]
[327555511,1716224281396,-460.89280748,0.00044657,43]
[327555512,1716224281554,-500.0,0.00044657,43]
[327555513,1716224281588,-500.0,0.00044657,43]
[327555514,1716224281617,-500.0,0.00044657,43]
[327555515,1716224281647,-419.55786025,0.00044657,43]
[327555516,1716224281676,-500.0,0.00044657,43]
[327555517,1716224281708,-664.93,0.00044657,43]
[327555518,1716224281736,-500.0,0.00044657,43]
[327555519,1716224281768,-500.0,0.00044657,14]
[327555520,1716224281798,-465.04498648,0.00044657,43]
[327555521,1716224281826,-500.0,0.00044657,43]
[327555522,1716224281854,-1027.75,0.00044657,43]
[327555523,1716224281882,-3539.18,0.00044657,43]
[327555524,1716224281910,-500.0,0.00044657,43]
[327555525,1716224281939,-500.0,0.00044657,43]
[327555526,1716224281968,-500.0,0.00044657,43]
[327555527,1716224281996,-783.73,0.00044657,43]
[327555528,1716224282026,-500.0,0.00044657,43]
[327555529,1716224282055,-500.0,0.00044657,43]
[327555530,1716224282084,-3413.21,0.00044657,43]
[327555531,1716224282111,-500.0,0.00044657,43]
[327555532,1716224282138,-500.0,0.00044657,43]
[327555533,1716224282166,-500.0,0.00044657,43]
[327555534,1716224282193,-500.0,0.00044657,43]
[327555535,1716224282220,-500.0,0.00044657,43]
[327555536,1716224282249,-500.0,0.00044657,43]
[327555537,1716224282278,-1149.97,0.00044657,43]
[327555538,1716224282307,-500.0,0.00044657,43]
[327555539,1716224282337,-824.58,0.00044657,43]
[327555540,1716224282367,-500.0,0.00044657,43]
[327555541,1716224282398,-7219.41,0.00044657,21]
[327555542,1716224282430,-500.0,0.00044657,43]
[327555543,1716224282459,-500.0,0.00044657,43]
[327555544,1716224282490,-500.0,0.00044657,43]
[327555545,1716224282523,-500.0,0.00044657,43]
[327555546,1716224282551,-500.0,0.00044657,43]
[327555547,1716224282579,-500.0,0.00044657,43]
[327555548,1716224282608,-500.0,0.00044657,43]
[327555549,1716224282635,-543.58,0.00044657,43]
[327555550,1716224282663,-627.23625945,0.00044657,43]
[327555551,1716224282693,-605.39670154,0.00044657,43]
[327555552,1716224282732,-500.0,0.00044657,43]
[327555553,1716224282762,-6082.08,0.00044657,43]
[327555554,1716224282795,-558.63,0.00044657,43]
[327555555,1716224282825,-500.0,0.00044657,43]
[327555556,1716224282852,-1374.25,0.00044657,43]
[327555557,1716224282879,-500.0,0.00044657,43]
[327555558,1716224282907,-500.0,0.00044657,43]
[327555559,1716224282941,-1706.72,0.00044657,43]
[327555560,1716224282980,-500.0,0.00044657,43]
[327555561,1716224283013,-500.0,0.00044657,43]
[327555562,1716224283048,-500.0,0.00044657,43]
[327555563,1716224283085,-500.0,0.00044657,43]
[327555564,1716224283114,-1942.7,0.00044657,43]
[327555565,1716224283148,-500.0,0.00044657,43]
[327555566,1716224283180,-500.0,0.00044657,43]
[327555567,1716224283209,-500.0,0.00044657,43]
[327555568,1716224283239,-500.0,0.00044657,43]
[327555569,1716224283272,-543.81,0.00044657,43]
[327555570,1716224283303,-294.57647395,0.00044657,43]
[327555571,1716224283336,-320.0,0.00044877,90]
[327555572,1716224283373,-150.5,0.00044901,35]
[327555573,1716224283405,-166.0,0.00044901,35]
[327555574,1716224283436,-210.0,0.00044901,35]
[327555575,1716224283470,-263.0,0.00044901,35]
[327555576,1716224283505,-150.5,0.00044911,35]
[327555577,1716224283538,-166.0,0.00044911,35]
[327555578,1716224283569,-210.0,0.00044911,35]
[327555579,1716224283601,-263.0,0.00044911,35]
[327555580,1716224283631,-150.5,0.00044921,35]
[327555581,1716224283662,-166.0,0.00044921,35]
[327555582,1716224283695,-210.0,0.00044921,35]
[327555583,1716224283732,-263.0,0.00044921,35]
[327555584,1716224283760,-245.04,0.00044921,35]
[327555585,1716224283791,-500.0,0.00044931,44]
[327555586,1716224283821,-500.0,0.00044931,44]
[327555587,1716224283854,-500.0,0.00044931,44]
[327555588,1716224283887,-500.0,0.00044931,44]
[327555589,1716224283923,-500.0,0.00044931,44]
[327555590,1716224283955,-500.0,0.00044931,44]
[327555591,1716224283986,-500.0,0.00044931,44]
[327555592,1716224284016,-500.0,0.00044931,44]
[327555593,1716224284049,-500.0,0.00044931,44]
[327555594,1716224284086,-500.0,0.00044931,44]
[327555595,1716224284117,-500.0,0.00044931,44]
[327555596,1716224284149,-500.0,0.00044931,44]
[327555597,1716224284181,-500.0,0.00044931,44]
[327555598,1716224284212,-500.0,0.00044931,44]
[327555599,1716224284245,-500.0,0.00044931,44]
[327555600,1716224284277,-500.0,0.00044931,44]
[327555601,1716224284308,-1143.19,0.00044931,44]
[327555602,1716224284343,-500.0,0.00044931,44]
[327555603,1716224284374,-500.0,0.00044931,44]
[327555604,1716224284406,-500.0,0.00044931,44]
[327555605,1716224284437,-1084.67,0.00044931,44]
[327555606,1716224284487,-500.0,0.00044931,44]
[327555607,1716224284531,-500.0,0.00044931,44]
[327555608,1716224284564,-500.0,0.00044931,44]
[327555609,1716224284595,-500.0,0.00044931,44]
[327555610,1716224284625,-500.0,0.00044931,44]
[327555611,1716224284657,-500.0,0.00044931,44]
[327555612,1716224284692,-500.0,0.00044931,44]
[327555613,1716224284723,-627.0537314,0.00044931,44]
[327555614,1716224284881,-500.0,0.00044931,44]
[327555615,1716224284916,-500.0,0.00044931,44]
[327555616,1716224284948,-500.0,0.00044931,44]
[327555617,1716224284980,-500.0,0.00044931,44]
[327555618,1716224285013,-500.0,0.00044931,44]
[327555619,1716224285047,-500.0,0.00044931,44]
[327555620,1716224285095,-500.0,0.00044931,44]
[327555621,1716224285130,-182.34249384,0.00044931,44]
[327555622,1716224285162,-500.0,0.00044931,44]
[327555623,1716224285195,-500.0,0.00044931,44]
[327555624,1716224285229,-500.0,0.00044931,44]
[327555625,1716224285286,-500.0,0.00044931,44]
[327555626,1716224285320,-500.0,0.00044931,44]
[327555627,1716224285352,-500.0,0.00044931,44]
[327555628,1716224285383,-500.0,0.00044931,44]
[327555629,1716224285415,-500.0,0.00044931,44]
[327555630,1716224285447,-500.0,0.00044931,44]
[327555631,1716224285477,-500.0,0.00044931,44]
[327555632,1716224285509,-500.0,0.00044931,44]
[327555633,1716224285541,-500.0,0.00044931,44]
[327555634,1716224285572,-500.0,0.00044931,44]
[327555635,1716224285602,-500.0,0.00044931,44]
[327555636,1716224285634,-500.0,0.00044931,44]
[327555637,1716224285665,-652.09,0.00044931,44]
[327555638,1716224285699,-500.0,0.00044931,44]
[327555639,1716224285731,-500.0,0.00044931,44]
[327555640,1716224285764,-500.0,0.00044931,44]
[327555641,1716224285796,-500.0,0.00044931,44]
[327555642,1716224285827,-560.69514013,0.00044931,44]
[327555643,1716224285858,-500.0,0.00044931,44]
[327555644,1716224285890,-538.24,0.00044931,44]
[327555645,1716224285923,-500.0,0.00044931,44]
[327555646,1716224285960,-500.0,0.00044931,44]
[327555647,1716224285998,-500.0,0.00044931,44]
[327555648,1716224286037,-500.0,0.00044931,44]
[327555649,1716224286073,-500.0,0.00044931,44]
[327555650,1716224286106,-505.47335446,0.00044931,44]
[327555651,1716224286138,-561.49,0.00044931,44]
[327555652,1716224286170,-500.0,0.00044931,44]
[327555653,1716224286203,-743.24,0.00044931,44]
[327555654,1716224286234,-500.0,0.00044931,44]
[327555655,1716224286265,-509.29,0.00044931,44]
[327555656,1716224286297,-514.41,0.00044931,44]
[327555657,1716224286327,-500.0,0.00044931,44]
[327555658,1716224286360,-500.0,0.00044931,44]
[327555659,1716224286392,-324.64006205,0.00044931,44]